fUST/lending_fUST_20250527
["ID","MTS","AMOUNT","RATE_DAILY","PERIOD"]
[362529979,1748352659601,-341.99279265,0.00019726,2]
[362529980,1748352659612,-430.0,0.00019726,2]
[362529981,1748352659623,-844.95,0.00019726,2]
[362529982,1748352659634,-430.0,0.00019726,2]
[362529983,1748352659645,-430.0,0.00019726,2]
[362529984,1748352659656,-430.0,0.00019726,2]
[362529985,1748352659666,-400.0,0.00019726,2]
[362529986,1748352659677,-430.0,0.00019726,2]
[362529987,1748352659687,-430.0,0.00019726,2]
[362529988,1748352659698,-430.0,0.00019726,2]
[362529989,1748352659708,-430.0,0.00019726,2]
[362529990,1748352659718,-430.0,0.00019726,2]
[362529991,1748352659729,-430.0,0.00019726,2]
[362529992,1748352659739,-430.0,0.00019726,2]
[362529993,1748352659749,-432.23953005,0.00019726,2]
[362529994,1748352659760,-430.0,0.00019726,2]
[362529995,1748352659770,-430.0,0.00019726,2]
[362529996,1748352659785,-430.0,0.00019726,2]
[362529997,1748352659796,-430.0,0.00019726,2]
[362529998,1748352659807,-432.16107037,0.00019726,2]
[362529999,1748352659819,-764.65,0.00019726,2]
[362530000,1748352659830,-1026.26942896,0.00019726,2]
[362530001,1748352659968,-430.0,0.00019178,2]
[362530002,1748352659978,-430.0,0.00019178,2]
[362530003,1748352659988,-430.0,0.00019452,2]
[362530004,1748352659999,-85.51057104,0.00019726,2]
[362530005,1748352660009,-146.13563801,0.00019726,2]
[362530006,1748352660021,-283.86436199,0.00019726,2]
[362530007,1748352660034,-430.0,0.00019726,2]
[362530008,1748352660044,-430.0,0.00019726,2]
[362530009,1748352660055,-430.0,0.00019726,2]
[362530010,1748352660065,-893.85,0.00019726,2]
[362530011,1748352660076,-614.74,0.00019726,2]
[362530012,1748352660087,-430.0,0.00019726,2]
[362530013,1748352660098,-430.0,0.00019726,2]
[362530014,1748352660108,-430.0,0.00019726,2]
[362530015,1748352660122,-430.0,0.00019726,2]
[362530016,1748352660133,-430.0,0.00019726,2]
[362530017,1748352660309,-430.0,0.00019726,2]
[362530018,1748352660321,-523.78,0.00019726,2]
[362530019,1748352660335,-242.06017446,0.00019726,2]
[362530020,1748352660347,-430.0,0.00019726,2]
[362530021,1748352660358,-430.0,0.00019726,2]
[362530022,1748352660370,-430.0,0.00019726,2]
[362530023,1748352660381,-430.0,0.00019726,2]
[362530024,1748352660393,-430.0,0.00019726,2]
[362530025,1748352660407,-430.0,0.00019726,2]
[362530026,1748352660417,-430.0,0.00019726,2]
[362530027,1748352660427,-498.62,0.00019726,2]
[362530028,1748352660437,-430.0,0.00019726,2]
[362530029,1748352660447,-430.0,0.00019726,2]
[362530030,1748352660457,-430.0,0.00019726,2]
[362530031,1748352660468,-430.0,0.00019726,2]
[362530032,1748352660478,-6.38112504,0.00019726,2]
[362530033,1748352660491,-423.61887496,0.00019726,2]
[362530034,1748352660501,-430.0,0.00019726,2]
[362530035,1748352660511,-430.0,0.00019726,2]
[362530036,1748352660520,-430.98493149,0.00019726,2]
[362530037,1748352660530,-430.0,0.00019726,2]
[362530038,1748352660548,-430.0,0.00019726,2]
[362530039,1748352660558,-430.0,0.00019726,2]
[362530040,1748352660568,-430.0,0.00019726,2]
[362530041,1748352660577,-208.48777456,0.00019726,2]
[362530042,1748352660587,-430.0,0.00019726,2]
[362530043,1748352660597,-430.0,0.00019726,2]
[362530044,1748352660606,-201.84589885,0.00019726,2]
[362530045,1748352660619,-228.15410115,0.00019726,2]
[362530046,1748352660629,-430.0,0.00019726,2]
[362530047,1748352660639,-430.0,0.00019726,2]
[362530048,1748352660648,-430.0,0.00019726,2]
[362530049,1748352660659,-500.0,0.00019726,2]
[362530050,1748352660669,-430.82966045,0.00019726,2]
[362530051,1748352660679,-430.0,0.00019726,2]
[362530052,1748352660689,-430.0,0.00019726,2]
[362530053,1748352660699,-430.0,0.00019726,2]
[362530054,1748352660709,-430.0,0.00019726,2]
[362530055,1748352660719,-296.7662372,0.00019726,2]
[362530056,1748352660818,-152.12431314,0.00019726,2]
[362530060,1748352919976,271987.14,0.000219,30]
[362530062,1748353031639,5000.0,0.000161,2]
[362530063,1748353040353,4931.0035114,0.00016049,2]
[362530064,1748353047155,3938.22829527,0.000161,2]
[362530065,1748353135388,1904.0,0.000246,120]
[362530066,1748353277624,242.17415577,0.00016024,2]
[362530071,1748353492471,226.0,0.00021918,30]
[362530072,1748353506961,2211.41667494,0.0001611,2]
[362530074,1748353541935,213.6054291,0.00016024,2]
[362530076,1748353633131,-168.92064347,0.00016114,2]
[362530077,1748353633154,-300.0,0.00016122,2]
[362530078,1748353633176,-300.0,0.00016122,2]
[362530079,1748353633198,-1200.0,0.00016122,2]
[362530080,1748353633220,-300.0,0.00016122,2]
[362530081,1748353633242,-300.0,0.00016122,2]
[362530082,1748353633263,-3354.92859435,0.00016123,2]
[362530083,1748353635110,-1689.72393831,0.00016123,2]
[362530084,1748353674155,-4955.34746734,0.00016123,2]
[362530085,1748353674179,-745.4560624,0.00016123,2]
[362530086,1748353674201,-1690.2226584,0.00016156,2]
[362530087,1748353674224,-245.25470736,0.00016265,2]
[362530088,1748353674247,-170.0733587,0.00016325,2]
[362530089,1748353674270,-158.31664122,0.00016738,2]
[362530090,1748353674294,-997.94349,0.00016937,2]
[362530091,1748353674318,-160.0,0.00017023,2]
[362530092,1748353674342,-499.78250584,0.00017101,2]
[362530093,1748353674364,-47377.60310874,0.00017195,2]
[362530094,1748353703081,-300.0,0.00017097,2]
[362530095,1748353703106,-16700.0,0.00017098,2]
[362530096,1748353721255,200.69561508,0.00016013,2]
[362530253,1748353755118,-8200.0,0.00017098,2]
[362530254,1748353755142,-300.0,0.00017193,2]
[362530255,1748353755166,-500.0,0.00017194,2]
[362530256,1748353755190,-566.77875688,0.00017194,2]
[362530257,1748353755212,-500.0,0.00017194,2]
[362530258,1748353755237,-451.02518107,0.00017194,2]
[362530259,1748353755262,-566.77875688,0.00017194,2]
[362530260,1748353755287,-500.0,0.00017194,2]
[362530261,1748353755312,-566.77875688,0.00017194,2]
[362530262,1748353755336,-566.77875688,0.00017194,2]
[362530263,1748353755360,-566.77875688,0.00017194,2]
[362530264,1748353755382,-500.0,0.00017194,2]
[362530265,1748353755405,-500.0,0.00017194,2]
[362530266,1748353755428,-566.77875688,0.00017194,2]
[362530267,1748353755453,-510.66773581,0.00017194,2]
[362530268,1748353755476,-566.77875688,0.00017194,2]
[362530269,1748353755501,-566.77875688,0.00017194,2]
[362530270,1748353755525,-566.77875688,0.00017194,2]
[362530271,1748353755551,-566.77875688,0.00017194,2]
[362530272,1748353755573,-500.0,0.00017194,2]
[362530273,1748353755595,-500.0,0.00017194,2]
[362530274,1748353755618,-500.0,0.00017194,2]
[362530275,1748353755642,-500.0,0.00017194,2]
[362530276,1748353755666,-500.0,0.00017194,2]
[362530277,1748353755689,-566.77875688,0.00017194,2]
[362530278,1748353755712,-500.0,0.00017194,2]
[362530279,1748353755736,-263.06998467,0.00017194,2]
[362530280,1748353755759,-500.0,0.00017194,2]
[362530281,1748353755786,-500.0,0.00017194,2]
[362530282,1748353755810,-500.0,0.00017194,2]
[362530283,1748353755835,-500.0,0.00017194,2]
[362530284,1748353755860,-500.0,0.00017194,2]
[362530285,1748353755883,-500.0,0.00017194,2]
[362530286,1748353755906,-500.0,0.00017194,2]
[362530287,1748353755931,-500.0,0.00017194,2]
[362530288,1748353755953,-445.72354452,0.00017194,2]
[362530289,1748353755976,-500.0,0.00017194,2]
[362530290,1748353756006,-500.0,0.00017194,2]
[362530291,1748353756032,-500.0,0.00017194,2]
[362530292,1748353756057,-500.0,0.00017194,2]
[362530293,1748353756081,-500.0,0.00017194,2]
[362530294,1748353756107,-500.0,0.00017194,2]
[362530295,1748353756132,-500.0,0.00017194,2]
[362530296,1748353756158,-434.46473527,0.00017194,2]
[362530297,1748353756185,-500.0,0.00017194,2]
[362530298,1748353756210,-500.0,0.00017194,2]
[362530299,1748353756235,-500.0,0.00017194,2]
[362530300,1748353756258,-500.0,0.00017194,2]
[362530301,1748353756286,-200.2307343,0.00017194,2]
[362530302,1748353756309,-214.51673116,0.00017194,2]
[362530303,1748353756331,-500.0,0.00017194,2]
[362530304,1748353756355,-566.77875688,0.00017194,2]
[362530305,1748353756381,-500.0,0.00017194,2]
[362530306,1748353756407,-500.0,0.00017194,2]
[362530307,1748353756433,-500.0,0.00017194,2]
[362530308,1748353756458,-500.0,0.00017194,2]
[362530309,1748353756481,-500.0,0.00017194,2]
[362530310,1748353756509,-4619.76212195,0.00017194,2]
[362530311,1748353756536,-4619.76212195,0.00017194,2]
[362530312,1748353756559,-300.0,0.00017194,2]
[362530313,1748353756583,-4619.76212195,0.00017194,2]
[362530314,1748353756610,-500.0,0.00017194,2]
[362530315,1748353756635,-4619.76212195,0.00017194,2]
[362530316,1748353756660,-4619.76212195,0.00017194,2]
[362530317,1748353756685,-4619.76212195,0.00017194,2]
[362530318,1748353756708,-4631.91939069,0.00017194,2]
[362530319,1748353756731,-4265.17256817,0.00017194,2]
[362530320,1748353756913,-366.74682252,0.00017194,2]
[362530321,1748353756943,-4631.91939069,0.00017194,2]
[362530322,1748353756968,-1001.33378679,0.00017194,2]
[362530372,1748353832726,-583.98445191,0.00017094,2]
[362530374,1748353832736,-300.0,0.00017193,2]
[362530376,1748353832746,-300.0,0.00017193,2]
[362530378,1748353832756,-566.74160385,0.00017193,2]
[362530380,1748353832770,-633.25839615,0.00017193,2]
[362530382,1748353832781,-2116.74160385,0.00017195,2]
[362530390,1748353832853,-505.65528741,0.00017195,2]
[362530392,1748353832864,-160.0,0.00017304,2]
[362530394,1748353832873,-420.0,0.00017625,2]
[362530396,1748353832883,-160.0,0.00018674,2]
[362530398,1748353832894,-420.0,0.00018775,2]
[362530400,1748353832904,-420.0,0.00018775,2]
[362530402,1748353832914,-1680.0,0.00018868,2]
[362530404,1748353832923,-437.30969261,0.00018913,2]
[362530406,1748353832933,-169.88464537,0.00019078,2]
[362530408,1748353832944,-500.0,0.00019177,2]
[362530410,1748353832954,-500.0,0.00019177,2]
[362530412,1748353832964,-1347.91526807,0.00019177,2]
[362530414,1748353832974,-165.71762675,0.00019177,2]
[362530417,1748353832985,-1347.91526807,0.00019177,2]
[362530420,1748353832995,-517.46741507,0.00019177,2]
[362530423,1748353833006,-500.0,0.00019177,2]
[362530426,1748353833017,-1347.91526807,0.00019177,2]
[362530429,1748353833028,-1347.91526807,0.00019177,2]
[362530432,1748353833039,-500.0,0.00019177,2]
[362530435,1748353833050,-1347.91526807,0.00019177,2]
[362530438,1748353833062,-430.0,0.00019178,2]
[362530441,1748353833072,-430.0,0.00019178,2]
[362530444,1748353833088,-430.0,0.00019178,2]
[362530448,1748353833099,-430.0,0.00019178,2]
[362530451,1748353833111,-430.0,0.00019178,2]
[362530454,1748353833121,-430.0,0.00019178,2]
[362530457,1748353833133,-404.92823211,0.00019178,2]
[362530460,1748353833144,-430.0,0.00019178,2]
[362530462,1748353833155,-500.0,0.00019178,2]
[362530464,1748353833168,-430.0,0.00019178,2]
[362530466,1748353833182,-227.21281075,0.00019178,2]
[362530468,1748353833194,-430.0,0.00019178,2]
[362530470,1748353833206,-430.0,0.00019178,2]
[362530472,1748353833218,-430.0,0.00019178,2]
[362530474,1748353833229,-430.0,0.00019178,2]
[362530475,1748353833239,-400.0,0.00019178,2]
[362530476,1748353833250,-430.0,0.00019178,2]
[362530477,1748353833263,-442.74556982,0.00019178,2]
[362530478,1748353833274,-430.0,0.00019178,2]
[362530479,1748353833284,-430.0,0.00019178,2]
[362530481,1748353833295,-277.36376202,0.00019178,2]
[362530483,1748353833306,-420.0,0.00019178,2]
[362530485,1748353833318,-545.09047494,0.00019178,2]
[362530487,1748353833334,-430.0,0.00019178,2]
[362530488,1748353833346,-430.0,0.00019178,2]
[362530489,1748353833357,-430.0,0.00019178,2]
[362530490,1748353833367,-300.0,0.00019178,2]
[362530491,1748353833379,-350.0,0.00019178,2]
[362530492,1748353833389,-430.0,0.00019178,2]
[362530493,1748353833401,-403.22178623,0.00019178,2]
[362530494,1748353833412,-430.0,0.00019178,2]
[362530495,1748353833423,-430.0,0.00019178,2]
[362530497,1748353833435,-430.0,0.00019178,2]
[362530498,1748353833446,-450.0,0.00019178,2]
[362530499,1748353833458,-430.0,0.00019178,2]
[362530501,1748353833469,-264.63030653,0.00019178,2]
[362530503,1748353833486,-420.0,0.00019178,2]
[362530505,1748353833497,-430.0,0.00019178,2]
[362530507,1748353833508,-430.0,0.00019178,2]
[362530508,1748353833521,-430.0,0.00019178,2]
[362530510,1748353833532,-430.0,0.00019178,2]
[362530512,1748353833543,-430.0,0.00019178,2]
[362530513,1748353833555,-430.0,0.00019178,2]
[362530514,1748353833567,-225.9076902,0.00019178,2]
[362530515,1748353833584,-430.0,0.00019178,2]
[362530516,1748353833595,-430.0,0.00019178,2]
[362530517,1748353833605,-430.0,0.00019178,2]
[362530518,1748353833616,-430.0,0.00019178,2]
[362530519,1748353833627,-370.0,0.00019178,2]
[362530520,1748353833637,-400.0,0.00019178,2]
[362530521,1748353833648,-430.0,0.00019178,2]
[362530522,1748353833658,-430.0,0.00019178,2]
[362530523,1748353833669,-430.0,0.00019178,2]
[362530524,1748353833680,-446.63812256,0.00019178,2]
[362530525,1748353833690,-430.0,0.00019178,2]
[362530526,1748353833700,-187.24915725,0.00019178,2]
[362530527,1748353833710,-430.0,0.00019178,2]
[362530528,1748353833720,-430.0,0.00019178,2]
[362530529,1748353833730,-430.0,0.00019178,2]
[362530530,1748353833740,-430.0,0.00019178,2]
[362530531,1748353833750,-353.55452504,0.00019178,2]
[362530532,1748353833761,-430.0,0.00019178,2]
[362530533,1748353833770,-430.0,0.00019178,2]
[362530534,1748353833780,-430.0,0.00019178,2]
[362530535,1748353833790,-184.7043347,0.00019178,2]
[362530536,1748353833800,-456.88969345,0.00019178,2]
[362530537,1748353833811,-430.0,0.00019178,2]
[362530538,1748353833820,-430.0,0.00019178,2]
[362530539,1748353833835,-430.0,0.00019178,2]
[362530540,1748353833844,-539.5018515,0.00019178,2]
[362530541,1748353833854,-430.0,0.00019178,2]
[362530542,1748353834051,-322.46745027,0.00019178,2]
[362530543,1748353834063,-430.0,0.00019178,2]
[362530544,1748353834074,-430.0,0.00019178,2]
[362530545,1748353834088,-427.50915335,0.00019178,2]
[362530546,1748353834098,-430.0,0.00019178,2]
[362530547,1748353834118,-430.0,0.00019178,2]
[362530548,1748353834132,-567.85525176,0.00019178,2]
[362530549,1748353834142,-430.0,0.00019178,2]
[362530550,1748353834153,-430.0,0.00019178,2]
[362530551,1748353834164,-430.0,0.00019178,2]
[362530552,1748353834174,-430.0,0.00019178,2]
[362530553,1748353834184,-389.36437566,0.00019178,2]
[362530554,1748353834195,-430.0,0.00019178,2]
[362530555,1748353834205,-402.90912656,0.00019178,2]
[362530556,1748353834215,-430.0,0.00019178,2]
[362530557,1748353834227,-430.0,0.00019178,2]
[362530558,1748353834237,-392.67034022,0.00019178,2]
[362530559,1748353834248,-432.29220232,0.00019178,2]
[362530560,1748353834259,-430.0,0.00019178,2]
[362530561,1748353834270,-450.0,0.00019178,2]
[362530562,1748353834280,-430.0,0.00019178,2]
[362530563,1748353834291,-393.27734264,0.00019178,2]
[362530564,1748353834301,-159.89233528,0.00019178,2]
[362530565,1748353834311,-430.0,0.00019178,2]
[362530566,1748353834321,-430.0,0.00019178,2]
[362530567,1748353834334,-430.0,0.00019178,2]
[362530568,1748353834344,-430.0,0.00019178,2]
[362530569,1748353834354,-461.66606856,0.00019178,2]
[362530570,1748353834364,-430.0,0.00019178,2]
[362530571,1748353834375,-430.0,0.00019178,2]
[362530572,1748353834385,-430.0,0.00019178,2]
[362530573,1748353834395,-430.0,0.00019178,2]
[362530574,1748353834405,-430.0,0.00019178,2]
[362530575,1748353834416,-430.0,0.00019178,2]
[362530576,1748353834426,-430.0,0.00019178,2]
[362530577,1748353834436,-430.0,0.00019178,2]
[362530578,1748353834446,-430.0,0.00019178,2]
[362530579,1748353834456,-430.0,0.00019178,2]
[362530580,1748353834470,-430.0,0.00019178,2]
[362530581,1748353834481,-330.58618859,0.00019178,2]
[362530582,1748353834491,-430.0,0.00019178,2]
[362530583,1748353834500,-328.58521431,0.00019178,2]
[362530584,1748353834511,-430.0,0.00019178,2]
[362530585,1748353834521,-430.0,0.00019178,2]
[362530586,1748353834531,-430.0,0.00019178,2]
[362530587,1748353834542,-430.0,0.00019178,2]
[362530588,1748353834553,-310.0,0.00019178,2]
[362530589,1748353834564,-430.0,0.00019178,2]
[362530590,1748353834574,-430.0,0.00019178,2]
[362530591,1748353834588,-430.0,0.00019178,2]
[362530592,1748353834598,-430.0,0.00019178,2]
[362530593,1748353834609,-430.0,0.00019178,2]
[362530594,1748353834619,-430.0,0.00019178,2]
[362530595,1748353834629,-339.92019048,0.00019178,2]
[362530596,1748353834639,-423.91077478,0.00019178,2]
[362530597,1748353834650,-430.0,0.00019178,2]
[362530598,1748353834660,-430.0,0.00019178,2]
[362530599,1748353834670,-430.0,0.00019178,2]
[362530600,1748353834680,-430.0,0.00019178,2]
[362530601,1748353834690,-430.0,0.00019178,2]
[362530602,1748353834699,-315.84954079,0.00019178,2]
[362530603,1748353834710,-430.0,0.00019178,2]
[362530604,1748353834720,-430.0,0.00019178,2]
[362530605,1748353834735,-430.0,0.00019178,2]
[362530606,1748353834746,-430.0,0.00019178,2]
[362530607,1748353834755,-430.0,0.00019178,2]
[362530608,1748353834765,-430.0,0.00019178,2]
[362530609,1748353834775,-430.0,0.00019178,2]
[362530610,1748353834785,-430.0,0.00019178,2]
[362530611,1748353834795,-430.0,0.00019178,2]
[362530612,1748353834806,-430.0,0.00019178,2]
[362530613,1748353834816,-430.0,0.00019178,2]
[362530614,1748353834826,-318.74058442,0.00019178,2]
[362530615,1748353834838,-374.37767273,0.00019178,2]
[362530616,1748353834848,-430.0,0.00019178,2]
[362530617,1748353834858,-430.0,0.00019178,2]
[362530618,1748353834868,-430.0,0.00019178,2]
[362530619,1748353834878,-430.0,0.00019178,2]
[362530620,1748353834888,-430.0,0.00019178,2]
[362530621,1748353834899,-430.0,0.00019178,2]
[362530622,1748353834910,-430.0,0.00019178,2]
[362530623,1748353834921,-430.0,0.00019178,2]
[362530624,1748353834931,-430.0,0.00019178,2]
[362530625,1748353834941,-430.0,0.00019178,2]
[362530626,1748353834952,-430.0,0.00019178,2]
[362530627,1748353834963,-448.2075502,0.00019178,2]
[362530628,1748353834974,-430.0,0.00019178,2]
[362530629,1748353834984,-430.0,0.00019178,2]
[362530630,1748353834994,-430.0,0.00019178,2]
[362530631,1748353835004,-430.0,0.00019178,2]
[362530632,1748353835015,-430.0,0.00019178,2]
[362530633,1748353835025,-430.0,0.00019178,2]
[362530634,1748353835036,-430.0,0.00019178,2]
[362530635,1748353835046,-220.27508575,0.00019178,2]
[362530636,1748353835056,-318.75,0.00019178,2]
[362530637,1748353835066,-430.0,0.00019178,2]
[362530638,1748353835080,-430.0,0.00019178,2]
[362530639,1748353835089,-430.0,0.00019178,2]
[362530640,1748353835100,-398.87073197,0.00019178,2]
[362530641,1748353835110,-433.96075232,0.00019178,2]
[362530642,1748353835120,-322.92389835,0.00019178,2]
[362530643,1748353835130,-430.0,0.00019178,2]
[362530644,1748353835140,-430.0,0.00019178,2]
[362530645,1748353835150,-352.93611112,0.00019178,2]
[362530646,1748353835160,-430.0,0.00019178,2]
[362530647,1748353835170,-432.29371893,0.00019178,2]
[362530648,1748353835180,-430.0,0.00019178,2]
[362530649,1748353835191,-434.43049342,0.00019178,2]
[362530650,1748353835201,-430.0,0.00019178,2]
[362530651,1748353835210,-430.0,0.00019178,2]
[362530652,1748353835220,-430.0,0.00019178,2]
[362530653,1748353835230,-430.0,0.00019178,2]
[362530654,1748353835240,-430.0,0.00019178,2]
[362530655,1748353835250,-430.0,0.00019178,2]
[362530656,1748353835260,-250.48194179,0.00019178,2]
[362530657,1748353835269,-430.0,0.00019178,2]
[362530658,1748353835279,-430.0,0.00019178,2]
[362530659,1748353835289,-517.01784821,0.00019178,2]
[362530660,1748353835300,-173.58219566,0.00019178,2]
[362530661,1748353835310,-505.84164683,0.00019178,2]
[362530662,1748353835319,-430.0,0.00019178,2]
[362530663,1748353835332,-430.0,0.00019178,2]
[362530664,1748353835342,-430.0,0.00019178,2]
[362530665,1748353835355,-430.0,0.00019178,2]
[362530666,1748353835364,-590.22,0.00019178,2]
[362530667,1748353835374,-529.36316137,0.00019178,2]
[362530668,1748353835383,-430.0,0.00019178,2]
[362530669,1748353835394,-430.0,0.00019178,2]
[362530670,1748353835404,-430.0,0.00019178,2]
[362530671,1748353835413,-430.0,0.00019178,2]
[362530672,1748353835422,-430.0,0.00019178,2]
[362530673,1748353835432,-430.0,0.00019178,2]
[362530674,1748353835441,-430.0,0.00019178,2]
[362530675,1748353835451,-430.0,0.00019178,2]
[362530676,1748353835461,-430.0,0.00019178,2]
[362530677,1748353835471,-430.0,0.00019178,2]
[362530678,1748353835485,-301.60213888,0.00019178,2]
[362530679,1748353835494,-430.0,0.00019178,2]
[362530680,1748353835504,-497.28836581,0.00019178,2]
[362530681,1748353835514,-430.0,0.00019178,2]
[362530682,1748353835526,-430.0,0.00019178,2]
[362530683,1748353835535,-430.0,0.00019178,2]
[362530684,1748353835545,-482.75,0.00019178,2]
[362530685,1748353835556,-430.0,0.00019178,2]
[362530686,1748353835566,-430.0,0.00019178,2]
[362530687,1748353835576,-430.0,0.00019178,2]
[362530688,1748353835589,-430.0,0.00019178,2]
[362530689,1748353835599,-1148.92,0.00019178,2]
[362530690,1748353835609,-430.0,0.00019178,2]
[362530691,1748353835620,-430.0,0.00019178,2]
[362530692,1748353835630,-421.07231158,0.00019178,2]
[362530693,1748353835640,-430.0,0.00019178,2]
[362530694,1748353835651,-430.0,0.00019178,2]
[362530695,1748353835661,-430.0,0.00019178,2]
[362530696,1748353835671,-430.0,0.00019178,2]
[362530697,1748353835680,-289.74675526,0.00019178,2]
[362530698,1748353835691,-430.0,0.00019178,2]
[362530699,1748353835701,-430.0,0.00019178,2]
[362530700,1748353835711,-430.0,0.00019178,2]
[362530701,1748353835722,-820.99,0.00019178,2]
[362530702,1748353835732,-430.0,0.00019178,2]
[362530703,1748353835742,-430.0,0.00019178,2]
[362530704,1748353835752,-178.58655484,0.00019178,2]
[362530705,1748353835762,-430.0,0.00019178,2]
[362530706,1748353835772,-873.7,0.00019178,2]
[362530707,1748353835782,-430.0,0.00019178,2]
[362530708,1748353835791,-430.0,0.00019178,2]
[362530709,1748353835802,-376.96991516,0.00019178,2]
[362530710,1748353835811,-430.0,0.00019178,2]
[362530711,1748353835821,-430.0,0.00019178,2]
[362530712,1748353835831,-430.0,0.00019178,2]
[362530713,1748353835841,-353.71231112,0.00019178,2]
[362530714,1748353835851,-430.0,0.00019178,2]
[362530715,1748353835860,-430.0,0.00019178,2]
[362530716,1748353835870,-430.0,0.00019178,2]
[362530717,1748353835881,-430.0,0.00019178,2]
[362530718,1748353835891,-224.57270511,0.00019178,2]
[362530719,1748353835901,-430.0,0.00019178,2]
[362530720,1748353835911,-907.08,0.00019178,2]
[362530721,1748353835920,-430.0,0.00019178,2]
[362530722,1748353835930,-652.91,0.00019178,2]
[362530723,1748353835940,-430.0,0.00019178,2]
[362530724,1748353835950,-381.82,0.00019178,2]
[362530725,1748353835960,-430.0,0.00019178,2]
[362530726,1748353835970,-430.0,0.00019178,2]
[362530727,1748353835981,-430.0,0.00019178,2]
[362530728,1748353835991,-430.0,0.00019178,2]
[362530729,1748353836001,-430.0,0.00019178,2]
[362530730,1748353836011,-430.0,0.00019178,2]
[362530731,1748353836021,-430.0,0.00019178,2]
[362530732,1748353836032,-430.0,0.00019178,2]
[362530733,1748353836043,-430.0,0.00019178,2]
[362530734,1748353836053,-430.0,0.00019178,2]
[362530735,1748353836062,-430.0,0.00019178,2]
[362530736,1748353836072,-430.0,0.00019178,2]
[362530737,1748353836082,-361.61042121,0.00019178,2]
[362530738,1748353836092,-310.71228129,0.00019178,2]
[362530739,1748353836101,-430.0,0.00019178,2]
[362530740,1748353836112,-430.0,0.00019178,2]
[362530741,1748353836121,-430.0,0.00019178,2]
[362530742,1748353836131,-430.0,0.00019178,2]
[362530743,1748353836141,-430.0,0.00019178,2]
[362530744,1748353836150,-430.0,0.00019178,2]
[362530745,1748353836160,-400.0,0.00019178,2]
[362530746,1748353836169,-413.30646775,0.00019178,2]
[362530747,1748353836179,-430.0,0.00019178,2]
[362530748,1748353836188,-430.0,0.00019178,2]
[362530749,1748353836198,-430.0,0.00019178,2]
[362530750,1748353836208,-430.0,0.00019178,2]
[362530751,1748353836218,-190.0,0.00019178,2]
[362530752,1748353836228,-188.0,0.00019178,2]
[362530753,1748353836238,-430.0,0.00019178,2]
[362530754,1748353836248,-255.23090934,0.00019178,2]
[362530755,1748353836259,-430.0,0.00019178,2]
[362530756,1748353836268,-430.0,0.00019178,2]
[362530757,1748353836278,-430.0,0.00019178,2]
[362530758,1748353836287,-500.0,0.00019178,2]
[362530759,1748353836296,-430.0,0.00019178,2]
[362530760,1748353836306,-430.0,0.00019178,2]
[362530761,1748353836316,-430.0,0.00019178,2]
[362530762,1748353836325,-430.0,0.00019178,2]
[362530763,1748353836337,-430.0,0.00019178,2]
[362530764,1748353836346,-430.0,0.00019178,2]
[362530765,1748353836356,-447.98450297,0.00019178,2]
[362530766,1748353836365,-430.0,0.00019178,2]